fUSD/lending_fUSD_20260702
["ID","MTS","AMOUNT","RATE_DAILY","PERIOD"]
[426845217,1782942646000,-902.0,0.00017028,2]
[426845211,1782942646000,-911.0,0.00017027,2]
[426845210,1782942646000,-903.0,0.00017027,2]
[426845209,1782942646000,-596.50595006,0.00017027,2]
[426845215,1782942646000,-151.0,0.00017028,2]
[426845223,1782942646000,-901.0,0.00017028,2]
[426845227,1782942646000,-151.0,0.00017028,2]
[426845224,1782942646000,-910.0,0.00017028,2]
[426845233,1782942646000,-2528.48941029,0.00017029,2]
[426845238,1782942646000,-889.0,0.00017029,2]
[426845237,1782942646000,-151.0,0.00017029,2]
[426845235,1782942646000,-152.0,0.00017029,2]
[426845234,1782942646000,-151.0,0.00017029,2]
[426845229,1782942646000,-3000.0,0.00017029,2]
[426845242,1782942646000,-888.0,0.00017029,2]
[426845230,1782942646000,-3000.0,0.00017029,2]
[426845228,1782942646000,-150.0,0.00017028,2]
[426845232,1782942646000,-3000.0,0.00017029,2]
[426845226,1782942646000,-915.0,0.00017028,2]
[426845225,1782942646000,-899.0,0.00017028,2]
[426845231,1782942646000,-3000.0,0.00017029,2]
[426845222,1782942646000,-916.0,0.00017028,2]
[426845286,1782942647000,-890.0,0.0001703,2]
[426845282,1782942647000,-899.0,0.0001703,2]
[426845285,1782942647000,-917.0,0.0001703,2]
[426845283,1782942647000,-150.0,0.0001703,2]
[426845280,1782942647000,-150.0,0.0001703,2]
[426845291,1782942647000,-895.0,0.0001703,2]
[426845281,1782942647000,-909.0,0.0001703,2]
[426845277,1782942647000,-889.0,0.0001703,2]
[426845273,1782942647000,-150.0,0.0001703,2]
[426845287,1782942647000,-151.0,0.0001703,2]
[426845284,1782942647000,-887.0,0.0001703,2]
[426845290,1782942647000,-150.0,0.0001703,2]
[426845297,1782942647000,-899.0,0.0001703,2]
[426845289,1782942647000,-898.0,0.0001703,2]
[426845292,1782942647000,-905.0,0.0001703,2]
[426845299,1782942647000,-899.0,0.0001703,2]
[426845294,1782942647000,-153.0,0.0001703,2]
[426845298,1782942647000,-903.0,0.0001703,2]
[426845275,1782942647000,-240.52982041,0.0001703,2]
[426845296,1782942647000,-151.0,0.0001703,2]
[426845300,1782942647000,-886.0,0.0001703,2]
[426845293,1782942647000,-891.0,0.0001703,2]
[426845295,1782942647000,-151.0,0.0001703,2]
[426845303,1782942647000,-151.0,0.00017031,2]
[426845302,1782942647000,-884.0,0.00017031,2]
[426845288,1782942647000,-890.0,0.0001703,2]
[426845276,1782942647000,-151.0,0.0001703,2]
[426845270,1782942647000,-916.0,0.0001703,2]
[426845272,1782942647000,-908.0,0.0001703,2]
[426845301,1782942647000,-903.0,0.00017031,2]
[426845251,1782942647000,-899.0,0.00017029,2]
[426845249,1782942647000,-884.0,0.00017029,2]
[426845248,1782942647000,-894.0,0.00017029,2]
[426845253,1782942647000,-151.0,0.00017029,2]
[426845252,1782942647000,-889.0,0.00017029,2]
[426845254,1782942647000,-893.0,0.00017029,2]
[426845250,1782942647000,-150.0,0.00017029,2]
[426845256,1782942647000,-894.0,0.00017029,2]
[426845255,1782942647000,-892.0,0.00017029,2]
[426845266,1782942647000,-152.0,0.0001703,2]
[426845265,1782942647000,-152.0,0.0001703,2]
[426845268,1782942647000,-906.0,0.0001703,2]
[426845257,1782942647000,-891.0,0.00017029,2]
[426845258,1782942647000,-151.0,0.00017029,2]
[426845259,1782942647000,-893.0,0.00017029,2]
[426845264,1782942647000,-896.0,0.0001703,2]
[426845260,1782942647000,-882.0,0.00017029,2]
[426845262,1782942647000,-898.0,0.0001703,2]
[426845261,1782942647000,-901.0,0.00017029,2]
[426845267,1782942647000,-908.0,0.0001703,2]
[426845269,1782942647000,-916.0,0.0001703,2]
[426845274,1782942647000,-152.0,0.0001703,2]
[426845279,1782942647000,-909.0,0.0001703,2]
[426845271,1782942647000,-909.0,0.0001703,2]
[426845278,1782942647000,-882.0,0.0001703,2]
[426845263,1782942647000,-904.0,0.0001703,2]
[426845305,1782942647000,-151.0,0.00017031,2]
[426845324,1782942647000,-151.0,0.0001713,2]
[426845306,1782942647000,-905.0,0.00017031,2]
[426845338,1782942647000,-200.0,0.0001759,2]
[426845341,1782942647000,-1415.6766,0.00019225,2]
[426845345,1782942647000,-150.0,0.00019566,2]
[426845344,1782942647000,-1614.38004913,0.00019357,2]
[426845343,1782942647000,-499.21607131,0.00019335,2]
[426845346,1782942647000,-151.0,0.00019679,2]
[426845347,1782942647000,-152.0,0.00019679,2]
[426845342,1782942647000,-405.241704,0.00019335,2]
[426845348,1782942647000,-909.0,0.00020115,2]
[426845349,1782942647000,-150.0,0.0002013,2]
[426845351,1782942647000,-904.0,0.00020506,2]
[426845350,1782942647000,-909.0,0.00020264,2]
[426845340,1782942647000,-6758.78803727,0.00018777,2]
[426845362,1782942647000,-10419.22859912,0.000211,2]
[426845356,1782942647000,-10419.22859912,0.000209,2]
[426845357,1782942647000,-217.4904538,0.000209,2]
[426845363,1782942647000,-217.4904538,0.000211,2]
[426845354,1782942647000,-895.0,0.00020733,2]
[426845359,1782942647000,-2418.59923141,0.00020905,2]
[426845358,1782942647000,-1640.75626913,0.000209,2]
[426845352,1782942647000,-897.0,0.00020506,2]
[426845355,1782942647000,-910.0,0.00020733,2]
[426845360,1782942647000,-889.0,0.00020936,2]
[426845364,1782942647000,-1262.63521716,0.000211,2]
[426845365,1782942647000,-378.12105197,0.000211,2]
[426845315,1782942647000,-904.0,0.00017031,2]
[426845353,1782942647000,-1614.38004913,0.0002057,2]
[426845337,1782942647000,-250.0,0.0001756,2]
[426845361,1782942647000,-905.0,0.00020936,2]
[426845336,1782942647000,-500.0,0.00017553,2]
[426845339,1782942647000,-1614.38004913,0.00018144,2]
[426845304,1782942647000,-151.0,0.00017031,2]
[426845308,1782942647000,-915.0,0.00017031,2]
[426845310,1782942647000,-208.04878922,0.00017031,2]
[426845311,1782942647000,-886.0,0.00017031,2]
[426845309,1782942647000,-887.0,0.00017031,2]
[426845314,1782942647000,-901.0,0.00017031,2]
[426845313,1782942647000,-151.0,0.00017031,2]
[426845312,1782942647000,-151.0,0.00017031,2]
[426845316,1782942647000,-889.0,0.00017031,2]
[426845318,1782942647000,-151.0,0.00017031,2]
[426845320,1782942647000,-910.0,0.0001713,2]
[426845322,1782942647000,-888.0,0.0001713,2]
[426845307,1782942647000,-882.0,0.00017031,2]
[426845325,1782942647000,-149.06787812,0.0001713,2]
[426845323,1782942647000,-152.0,0.0001713,2]
[426845334,1782942647000,-214.57,0.00017469,2]
[426845332,1782942647000,-242.63,0.00017364,2]
[426845330,1782942647000,-153.0,0.0001713,2]
[426845331,1782942647000,-151.0,0.0001713,2]
[426845333,1782942647000,-1766.4,0.00017458,2]
[426845329,1782942647000,-898.0,0.0001713,2]
[426845328,1782942647000,-895.0,0.0001713,2]
[426845366,1782942647000,-160.0,0.00021142,2]
[426845327,1782942647000,-150.0,0.0001713,2]
[426845326,1782942647000,-746.93212188,0.0001713,2]
[426845335,1782942647000,-500.0,0.00017553,2]
[426845399,1782942648000,-10419.22859912,0.000226,2]
[426845405,1782942648000,-177.68071004,0.00023398,2]
[426845408,1782942648000,-192.40512043,0.00023398,2]
[426845407,1782942648000,-154.64127923,0.00023398,2]
[426845398,1782942648000,-377.48,0.00022466,2]
[426845403,1782942648000,-216.0,0.00023095,2]
[426845401,1782942648000,-10419.22859912,0.000229,2]
[426845400,1782942648000,-151.0,0.000226,2]
[426845402,1782942648000,-1614.38004913,0.00022996,2]
[426845404,1782942648000,-197.05128589,0.00023398,2]
[426845411,1782942648000,-204.19341776,0.00023407,2]
[426845409,1782942648000,-193.24108922,0.00023398,2]
[426845412,1782942648000,-310.0,0.000236,2]
[426845415,1782942648000,-158.0,0.00024,2]
[426845418,1782942648000,-451.0,0.00024,2]
[426845419,1782942648000,-167.0,0.00024,2]
[426845410,1782942648000,-190.44978293,0.00023398,2]
[426845417,1782942648000,-157.0,0.00024,2]
[426845414,1782942648000,-437.0,0.00024,2]
[426845413,1782942648000,-167.11,0.00023946,2]
[426845416,1782942648000,-582.0,0.00024,2]
[426845406,1782942648000,-182.65390904,0.00023398,2]
[426845395,1782942648000,-915.0,0.00022239,2]
[426845380,1782942648000,-10419.22859912,0.000217,2]
[426845393,1782942648000,-725.09313482,0.00022221,2]
[426845421,1782942648000,-161.0,0.00024,2]
[426845367,1782942648000,-911.0,0.00021168,2]
[426845370,1782942648000,-711.68,0.000213,2]
[426845371,1782942648000,-7067.20408253,0.000213,2]
[426845369,1782942648000,-2640.34451659,0.000213,2]
[426845372,1782942648000,-217.4904538,0.000213,2]
[426845376,1782942648000,-217.4904538,0.000215,2]
[426845374,1782942648000,-151.0,0.000213,2]
[426845375,1782942648000,-10419.22859912,0.000215,2]
[426845378,1782942648000,-2036.01995688,0.00021529,2]
[426845394,1782942648000,-897.0,0.00022239,2]
[426845377,1782942648000,-1640.75626913,0.000215,2]
[426845387,1782942648000,-160.0,0.00021873,2]
[426845382,1782942648000,-217.4904538,0.000217,2]
[426845386,1782942648000,-1614.38004913,0.00021783,2]
[426845384,1782942648000,-1640.75626913,0.000217,2]
[426845389,1782942648000,-683.87791643,0.00021927,2]
[426845388,1782942648000,-5000.0,0.00021918,2]
[426845396,1782942648000,-886.0,0.00022345,2]
[426845390,1782942648000,-10419.22859912,0.00022,2]
[426845391,1782942648000,-186.0,0.00022,2]
[426845392,1782942648000,-10419.22859912,0.000222,2]
[426845373,1782942648000,-1640.75626913,0.000213,2]
[426845420,1782942648000,-187.0,0.00024,2]
[426845397,1782942648000,-10419.22859912,0.000224,2]
[426845424,1782942648000,-1614.38004913,0.00024209,2]
[426845450,1782942648000,-591.15385766,0.00025479,2]
[426845451,1782942648000,-533.04213011,0.00025479,2]
[426845453,1782942648000,-463.9238377,0.00025479,2]
[426845461,1782942648000,-150.0,0.00025675,7]
[426845458,1782942648000,-612.58025328,0.00025489,2]
[426845456,1782942648000,-579.72326766,0.00025479,2]
[426845457,1782942648000,-571.3493488,0.00025479,2]
[426845455,1782942648000,-577.21536128,0.00025479,2]
[426845454,1782942648000,-165.91352889,0.00025479,2]
[426845459,1782942648000,-195.90756526,0.00025634,30]
[426845447,1782942648000,-244.83,0.00025,2]
[426845462,1782942648000,-162.58,0.00025753,7]
[426845466,1782942648000,-473.77706053,0.00025927,2]
[426845464,1782942648000,-162.54,0.00025753,7]
[426845465,1782942648000,-267.0,0.00025902,5]
[426845470,1782942648000,-451.0,0.00026,2]
[426845467,1782942648000,-437.0,0.00026,2]
[426845469,1782942648000,-582.0,0.00026,2]
[426845463,1782942648000,-162.5,0.00025753,7]
[426845471,1782942648000,-167.0,0.00026,2]
[426845472,1782942648000,-187.0,0.00026,2]
[426845422,1782942648000,-153.0,0.00024,2]
[426845468,1782942648000,-158.18545398,0.00026,2]
[426845448,1782942648000,-156.59671447,0.00025,2]
[426845460,1782942648000,-196.49571017,0.00025634,30]
[426845449,1782942648000,-1614.38004913,0.00025422,2]
[426845423,1782942648000,-500.0,0.00024164,2]
[426845452,1782942648000,-547.96172711,0.00025479,2]
[426845428,1782942648000,-365.30781807,0.00024647,2]
[426845427,1782942648000,-355.36142007,0.00024647,2]
[426845426,1782942648000,-394.10257177,0.00024647,2]
[426845430,1782942648000,-384.81024086,0.00024647,2]
[426845429,1782942648000,-309.28255847,0.00024647,2]
[426845431,1782942648000,-386.48217844,0.00024647,2]
[426845434,1782942648000,-1000.0,0.00024658,2]
[426845433,1782942648000,-408.38683552,0.00024656,2]
[426845437,1782942648000,-162.54,0.00024658,2]
[426845435,1782942648000,-286.5,0.00024658,2]
[426845425,1782942648000,-242.63,0.00024309,2]
[426845441,1782942648000,-159.94377835,0.00025,2]
[426845442,1782942648000,-451.0,0.00025,2]
[426845440,1782942648000,-582.0,0.00025,2]
[426845438,1782942648000,-437.0,0.00025,2]
[426845439,1782942648000,-158.0,0.00025,2]
[426845432,1782942648000,-380.89956587,0.00024647,2]
[426845443,1782942648000,-167.0,0.00025,2]
[426845444,1782942648000,-187.0,0.00025,2]
[426845446,1782942648000,-367.74,0.00025,2]
[426845445,1782942648000,-859.4,0.00025,2]
[426845436,1782942648000,-162.5,0.00024658,2]
[426845474,1782942649000,-1392.80741925,0.00026027,2]
[426845475,1782942649000,-2711.58095323,0.00026027,2]
[426845473,1782942649000,-71823.12317419,0.00026027,2]
[426845476,1782942831000,82398.9873,0.00025927,120]
[426845477,1782942880000,157337.842,0.00025927,120]
[426845484,1782943153000,-346.9458,0.00016929,2]
[426845485,1782943153000,-403.0542,0.00016929,2]
[426845486,1782943155000,150.0,0.00024919,120]
[426845488,1782943227000,807.0177,0.00025927,120]
[426845492,1782943747000,-150.0,0.00017243,2]
[426845493,1782943747000,-151.0,0.00017243,2]
[426845494,1782943747000,-150.0,0.00017243,2]
[426845496,1782943747000,-151.0,0.00017243,2]
[426845495,1782943747000,-150.0,0.00017243,2]
[426845497,1782943747000,-151.0,0.00017243,2]
[426845498,1782943747000,-151.0,0.00017243,2]
[426845499,1782943747000,-152.0,0.00017243,2]
[426845504,1782943747000,-150.0,0.00017244,2]
[426845501,1782943747000,-152.0,0.00017243,2]
[426845502,1782943747000,-150.0,0.00017243,2]
[426845505,1782943747000,-152.0,0.00017244,2]
[426845503,1782943747000,-496.2724661,0.00017244,2]
[426845500,1782943747000,-151.0,0.00017243,2]
[426845507,1782943747000,-153.0,0.00017244,2]
[426845506,1782943747000,-150.0,0.00017244,2]
[426845519,1782943747000,-143.74577254,0.00017244,2]
[426845518,1782943747000,-151.0,0.00017244,2]
[426845516,1782943747000,-150.0,0.00017244,2]
[426845514,1782943747000,-151.0,0.00017244,2]
[426845515,1782943747000,-152.0,0.00017244,2]
[426845517,1782943747000,-150.0,0.00017244,2]
[426845511,1782943747000,-246.22864136,0.00017244,2]
[426845512,1782943747000,-151.0,0.00017244,2]
[426845510,1782943747000,-892.0,0.00017244,2]
[426845508,1782943747000,-151.0,0.00017244,2]
[426845509,1782943747000,-151.0,0.00017244,2]
[426845513,1782943747000,-151.0,0.00017244,2]
[426845537,1782943831000,-150.0,0.00017244,2]
[426845546,1782943831000,-795.46452763,0.00018913,2]
[426845547,1782943831000,-901.0,0.00018913,2]
[426845542,1782943831000,-918.0,0.00017911,2]
[426845541,1782943831000,-900.0,0.00017911,2]
[426845539,1782943831000,-900.0,0.00017244,2]
[426845538,1782943831000,-314.705,0.00017244,3]
[426845536,1782943831000,-153.0,0.00017244,2]
[426845532,1782943831000,-6.25422746,0.00017244,2]
[426845528,1782943831000,-151.0,0.00017243,2]
[426845531,1782943831000,-151.0,0.00017243,2]
[426845533,1782943831000,-58.14356287,0.00017244,2]
[426845534,1782943831000,-93.85643713,0.00017244,2]
[426845530,1782943831000,-50.4484392,0.00017243,2]
[426845543,1782943831000,-180.76480098,0.00017911,2]
[426845535,1782943831000,-151.0,0.00017244,2]
[426845527,1782943831000,-48.4484392,0.00017243,2]
[426845522,1782943831000,-152.0,0.00017243,2]
[426845523,1782943831000,-103.5515608,0.00017243,2]
[426845529,1782943831000,-100.5515608,0.00017243,2]
[426845545,1782943831000,-121.53547237,0.00018913,2]
[426845540,1782943831000,-914.0,0.00017244,2]
[426845549,1782943831000,-379.49243223,0.000209,2]
[426845544,1782943831000,-715.23519902,0.00017911,2]
[426845561,1782943831000,-1018.24827416,0.000215,2]
[426845566,1782943831000,-500.0,0.00021898,2]
[426845568,1782943831000,-393.34970091,0.00021898,2]
[426845565,1782943831000,-216.66345934,0.00021875,2]
[426845567,1782943831000,-500.0,0.00021898,2]
[426845563,1782943831000,-160.0,0.00021696,2]
[426845564,1782943831000,-1018.24827416,0.000217,2]
[426845562,1782943831000,-163.89,0.000215,2]
[426845559,1782943831000,-288.06,0.000211,7]
[426845560,1782943831000,-1018.24827416,0.000213,2]
[426845557,1782943831000,-32064.14,0.000211,2]
[426845555,1782943831000,-9999.99,0.000211,2]
[426845553,1782943831000,-2096.91798273,0.000211,2]
[426845554,1782943831000,-7903.07201727,0.000211,2]
[426845551,1782943831000,-499.1807737,0.000211,2]
[426845556,1782943831000,-934.95,0.000211,2]
[426845552,1782943831000,-289.73001727,0.000211,2]
[426845550,1782943831000,-229.33748319,0.000211,2]
[426845548,1782943831000,-638.75584193,0.000209,2]
[426845558,1782943831000,-268.14,0.000211,2]
[426845570,1782943832000,-268.70170091,0.00021898,2]
[426845569,1782943832000,-106.65029909,0.00021898,2]
[426845573,1782943837000,-151.0,0.00017243,2]
[426845575,1782943837000,-106.84217549,0.00021898,2]
[426845576,1782943837000,-393.15782451,0.00021898,2]
[426845577,1782943837000,-96.07606744,0.00021898,2]
[426845574,1782943837000,-231.29829909,0.00021898,2]
[426845595,1782943841000,-500.0,0.00021898,2]
[426845598,1782943841000,-1018.24827416,0.000219,2]
[426845599,1782943841000,-5000.0,0.00021918,2]
[426845596,1782943841000,-500.0,0.00021898,2]
[426845597,1782943841000,-296.86945347,0.00021898,2]
[426845594,1782943841000,-500.0,0.00021898,2]
[426845593,1782943841000,-500.0,0.00021898,2]
[426845592,1782943841000,-500.0,0.00021898,2]
[426845600,1782943841000,-238.44033398,0.00022199,2]
[426845589,1782943841000,-500.0,0.00021898,2]
[426845591,1782943841000,-500.0,0.00021898,2]
[426845587,1782943841000,-500.0,0.00021898,2]
[426845586,1782943841000,-500.0,0.00021898,2]
[426845588,1782943841000,-500.0,0.00021898,2]
[426845584,1782943841000,-500.0,0.00021898,2]
[426845585,1782943841000,-593.84888643,0.00021898,2]
[426845583,1782943841000,-403.92393256,0.00021898,2]
[426845590,1782943841000,-500.0,0.00021898,2]
[426845601,1782943841000,-195.3962067,0.00022199,2]
[426845612,1782943841000,-166.71320425,0.00023407,2]
[426845603,1782943841000,-1018.24827416,0.000222,2]
[426845602,1782943841000,-340.50875788,0.00022199,2]
[426845622,1782943841000,-1344.99,0.00023678,2]
[426845621,1782943841000,-948.9012,0.00023678,2]
[426845619,1782943841000,-70272.93974123,0.00023678,2]
[426845620,1782943841000,-39905.05300662,0.00023678,2]
[426845617,1782943841000,-601.4871801,0.00023678,2]
[426845614,1782943841000,-208.70037636,0.00023407,2]
[426845616,1782943841000,-322.87600988,0.00023607,2]
[426845615,1782943841000,-167.11,0.00023559,2]
[426845618,1782943841000,-2474.0527291,0.00023678,2]
[426845611,1782943841000,-172.51093817,0.00023407,2]
[426845609,1782943841000,-179.85408276,0.00023407,2]
[426845606,1782943841000,-216.0,0.00022627,2]
[426845608,1782943841000,-208.27728611,0.00023407,2]
[426845610,1782943841000,-162.17402989,0.00023407,2]
[426845607,1782943841000,-1018.24827416,0.000228,2]
[426845605,1782943841000,-1018.24827416,0.000226,2]
[426845604,1782943841000,-1018.24827416,0.000224,2]
[426845613,1782943841000,-207.79753006,0.00023407,2]
[426845637,1782943842000,-20159.99999999,0.00023678,2]
[426845689,1782943845000,-416.55457223,0.00024655,2]
[426845686,1782943845000,-159.0,0.00024,2]
[426845687,1782943845000,-322.87600982,0.00024151,2]
[426845685,1782943845000,-158.0,0.00024,2]
[426845684,1782943845000,-383.0,0.00024,2]
[426845680,1782943845000,-156.84109195,0.00023818,2]
[426845679,1782943845000,-19335.8085102,0.00023707,2]
[426845681,1782943845000,-257.0,0.00024,2]
[426845683,1782943845000,-495.0,0.00024,2]
[426845678,1782943845000,-1677.4325492,0.00023707,2]
[426845677,1782943845000,-7517.06596656,0.00023678,2]
[426845690,1782943845000,-359.70816551,0.00024656,2]
[426845682,1782943845000,-372.0,0.00024,2]
[426845692,1782943845000,-345.02187634,0.00024656,2]
[426845688,1782943845000,-904.0,0.000245,2]
[426845693,1782943845000,-333.42640849,0.00024656,2]
[426845691,1782943845000,-324.34805977,0.00024656,2]
[426845707,1782943845000,-383.0,0.00025,2]
[426845705,1782943845000,-372.0,0.00025,2]
[426845704,1782943845000,-257.0,0.00025,2]
[426845703,1782943845000,-500.0,0.00024986,2]
[426845700,1782943845000,-160.13,0.00024658,2]
[426845702,1782943845000,-322.87600982,0.00024694,2]
[426845706,1782943845000,-495.0,0.00025,2]
[426845699,1782943845000,-1157.03,0.00024658,2]
[426845695,1782943845000,-417.40075272,0.00024656,2]
[426845698,1782943845000,-229.2,0.00024658,2]
[426845697,1782943845000,-1000.0,0.00024658,2]
[426845694,1782943845000,-415.59506012,0.00024656,2]
[426845701,1782943845000,-163.62,0.00024658,2]
[426845696,1782943845000,-165.05647854,0.00024656,2]
[426845723,1782943846000,-1157.02,0.00025501,2]
[426845725,1782943846000,-248.65,0.00025525,2]
[426845724,1782943846000,-248.81,0.00025522,2]
[426845727,1782943846000,-216.0,0.00025627,2]
[426845728,1782943846000,-322.87600982,0.00025782,2]
[426845729,1782943846000,-177.08377207,0.00025897,2]
[426845731,1782943846000,-504.4182,0.00025927,2]
[426845732,1782943846000,-257.0,0.00026,2]
[426845730,1782943846000,-1157.02,0.00025922,2]
[426845720,1782943846000,-623.39259019,0.00025489,2]
[426845726,1782943846000,-248.81,0.00025525,2]
[426845721,1782943846000,-626.10112907,0.00025489,2]
[426845714,1782943846000,-342.08,0.00025482,2]
[426845718,1782943846000,-517.53281451,0.00025489,2]
[426845719,1782943846000,-500.13961274,0.00025489,2]
[426845717,1782943846000,-486.52208966,0.00025489,2]
[426845715,1782943846000,-624.83185834,0.00025488,2]
[426845716,1782943846000,-539.56224827,0.00025489,2]
[426845713,1782943846000,-233.05993536,0.00025397,2]
[426845709,1782943846000,-159.0,0.00025,2]
[426845712,1782943846000,-322.87600982,0.00025238,2]
[426845710,1782943846000,-1157.02,0.00025079,2]
[426845711,1782943846000,-374.0,0.000251,7]
[426845708,1782943846000,-158.0,0.00025,2]
[426845735,1782943846000,-383.0,0.00026,2]
[426845722,1782943846000,-330.11295708,0.00025489,2]
[426845733,1782943846000,-372.0,0.00026,2]
[426845753,1782943846000,-150.0,0.00026025,5]
[426845736,1782943846000,-158.0,0.00026,2]
[426845762,1782943846000,-329.41210928,0.00026027,2]
[426845761,1782943846000,-4685.91047458,0.00026027,2]
[426845759,1782943846000,-673.0,0.00026027,5]
[426845760,1782943846000,-64885.29639229,0.00026027,2]
[426845755,1782943846000,-683.0,0.00026025,5]
[426845734,1782943846000,-495.0,0.00026,2]
[426845756,1782943846000,-1052.0,0.00026025,5]
[426845758,1782943846000,-686.0,0.00026027,5]
[426845754,1782943846000,-250.0,0.00026025,5]
[426845752,1782943846000,-663.0,0.00026025,5]
[426845751,1782943846000,-1034.0,0.00026025,5]
[426845749,1782943846000,-375.39224318,0.00026025,5]
[426845757,1782943846000,-1027.0,0.00026026,5]
[426845748,1782943846000,-683.0,0.00026025,5]
[426845746,1782943846000,-671.0,0.00026024,5]
[426845738,1782943846000,-153.0,0.00026024,5]
[426845743,1782943846000,-675.0,0.00026024,5]
[426845744,1782943846000,-151.0,0.00026024,7]
[426845741,1782943846000,-684.0,0.00026024,5]
[426845747,1782943846000,-150.0,0.00026024,5]
[426845745,1782943846000,-151.0,0.00026024,5]
[426845742,1782943846000,-688.0,0.00026024,5]
[426845740,1782943846000,-663.0,0.00026024,5]
[426845739,1782943846000,-246.0,0.00026024,5]
[426845737,1782943846000,-159.0,0.00026,2]
[426845750,1782943846000,-665.0,0.00026025,5]
[426845782,1782943953000,13168.0175,0.00021799,120]
[426845783,1782944020000,5444.6833,0.000218,120]
[426845784,1782944116000,214.92060459,0.00024626,120]
[426845807,1782945031000,-385.055,0.00021099,12]
[426845809,1782945031000,-151.0,0.00021099,2]
[426845811,1782945031000,-158.14708545,0.00021099,2]
[426845808,1782945031000,-150.0,0.00021099,2]
[426845813,1782945031000,-151.0,0.00021099,2]
[426845816,1782945031000,-151.0,0.00023406,2]
[426845817,1782945031000,-151.0,0.00023406,2]
[426845814,1782945031000,-216.66345934,0.00021843,2]
[426845815,1782945031000,-160.0,0.00021889,2]
[426845812,1782945031000,-744.85291455,0.00021099,2]
[426845819,1782945031000,-180.91414001,0.00023406,2]
[426845818,1782945031000,-164.15772644,0.00023406,2]
[426845820,1782945031000,-154.10977143,0.00023406,2]
[426845810,1782945031000,-151.0,0.00021099,2]
[426845822,1782945031000,-211.95348066,0.00023406,2]
[426845821,1782945031000,-152.16368824,0.00023406,2]
[426845831,1782945031000,-159.0,0.00024,2]
[426845834,1782945031000,-343.69157005,0.00024654,2]
[426845833,1782945031000,-500.0,0.00024654,2]
[426845830,1782945031000,-164.59292995,0.00024,2]
[426845825,1782945031000,-370.28309242,0.00023706,2]
[426845832,1782945031000,-310.76327261,0.00024654,2]
[426845827,1782945031000,-316.0,0.00024,2]
[426845826,1782945031000,-218.0,0.00024,2]
[426845824,1782945031000,-216.0,0.00023506,2]
[426845828,1782945031000,-420.0,0.00024,2]
[426845829,1782945031000,-326.0,0.00024,2]
[426845823,1782945031000,-212.87438388,0.00023406,2]
[426845837,1782945032000,-500.0,0.00024655,2]
[426845835,1782945032000,-500.0,0.00024654,2]
[426845836,1782945032000,-500.0,0.00024655,2]
[426845839,1782945032000,-500.0,0.00024655,2]
[426845838,1782945032000,-500.0,0.00024655,2]
[426845840,1782945032000,-500.0,0.00024655,2]
[426845844,1782945032000,-500.0,0.00024655,2]
[426845842,1782945032000,-500.0,0.00024655,2]
[426845847,1782945032000,-500.0,0.00024655,2]
[426845845,1782945032000,-500.0,0.00024655,2]
[426845846,1782945032000,-500.0,0.00024655,2]
[426845848,1782945032000,-231.17957042,0.00024655,2]
[426845843,1782945032000,-500.0,0.00024655,2]
[426845854,1782945041000,-500.0,0.00024655,2]
[426845853,1782945041000,-268.82042958,0.00024655,2]